bitfinex/quotes_SOLUSD_20251214
["timestamp","ask_amount","ask_price","bid_price","bid_amount"]
[1765731665133,1e-08,131.12,131.11,28.18076416]
[1765731666958,0.2,131.14,131.12,0.28432314]
[1765731667138,0.2,131.14,131.13,24.09072716]
[1765731667658,0.2,131.14,131.13,24.79072716]
[1765731668487,0.2,131.15,131.14,0.28432314]
[1765731668776,1e-08,131.15,131.14,3.40363596]
[1765731668977,1e-08,131.15,131.14,11.02907442]
[1765731670978,1e-08,131.15,131.14,22.25833216]
[1765731671466,1e-08,131.15,131.14,19.83901934]
[1765731672092,1e-08,131.15,131.14,22.25833216]
[1765731672291,0.1,131.2,131.18,8.80994492]
[1765731672457,0.1,131.2,131.19,11.74363596]
[1765731672856,0.1,131.2,131.19,16.94685534]
[1765731673087,0.1,131.2,131.19,15.9625322]
[1765731673300,0.1,131.2,131.19,18.38184502]
[1765731673904,0.1,131.2,131.19,16.6625322]
[1765731674069,0.1,131.2,131.19,19.08184502]
[1765731674573,0.1,131.2,131.19,19.36616816]
[1765731676390,1e-08,131.21,131.2,9.09426806]
[1765731676697,1e-08,131.21,131.2,14.6328937]
[1765731677189,1e-08,131.21,131.2,22.25484491]
[1765731677893,1e-08,131.21,131.2,20.66904241]
[1765731678298,1e-08,131.21,131.2,23.08835523]
[1765731678678,1e-08,131.21,131.2,10.74126403]
[1765731679089,1e-08,131.21,131.2,23.78835523]
[1765731680379,1e-08,131.21,131.2,20.66904241]
[1765731680576,1e-08,131.21,131.2,23.08835523]
[1765731681841,1e-08,131.21,131.2,20.66904241]
[1765731682018,0.70000001,131.21,131.2,7.62195121]
[1765731682304,1e-08,131.21,131.2,7.62195121]
[1765731682608,1e-08,131.21,131.2,10.04126403]
[1765731685296,1e-08,131.21,131.2,23.08465599]
[1765731685804,1e-08,131.21,131.2,23.78465599]
[1765731686392,1e-08,131.21,131.2,23.08465599]
[1765731686581,1e-08,131.21,131.2,20.66904241]
[1765731686773,0.67000001,131.21,131.2,7.62195121]
[1765731686978,1e-08,131.21,131.2,7.62195121]
[1765731687301,1e-08,131.21,131.2,10.03756479]
[1765731688407,0.66000001,131.21,131.2,7.62195121]
[1765731688997,1e-08,131.21,131.2,7.62195121]
[1765731689486,1e-08,131.21,131.2,10.03756479]
[1765731691814,1e-08,131.21,131.2,7.62195121]
[1765731692000,1e-08,131.21,131.2,10.03756479]
[1765731693910,1e-08,131.21,131.2,7.62195121]
[1765731694106,1e-08,131.21,131.2,10.03756479]
[1765731696511,0.66000001,131.21,131.2,7.62195121]
[1765731696810,1e-08,131.21,131.2,10.03756479]
[1765731697514,1e-08,131.21,131.2,7.62195121]
[1765731697815,1e-08,131.21,131.2,10.03756479]
[1765731699197,1e-08,131.21,131.2,10.68756479]
[1765731702014,1e-08,131.21,131.2,8.27195121]
[1765731702217,1e-08,131.21,131.2,10.68756479]
[1765731703106,1e-08,131.21,131.2,22.19744643]
[1765731704588,1e-08,131.21,131.2,19.78183285]
[1765731704904,1e-08,131.21,131.2,18.37756479]
[1765731705091,1e-08,131.21,131.2,19.02756479]
[1765731708098,1e-08,131.21,131.2,15.96195121]
[1765731708302,1e-08,131.21,131.2,18.37756479]
[1765731708504,1e-08,131.21,131.2,15.96195121]
[1765731708720,1e-08,131.21,131.2,18.37756479]
[1765731709496,1e-08,131.21,131.2,19.02756479]
[1765731710328,1e-08,131.21,131.2,18.37756479]
[1765731712236,1e-08,131.21,131.2,16.61195121]
[1765731712525,1e-08,131.21,131.2,19.02756479]
[1765731715501,1e-08,131.21,131.2,20.38625774]
[1765731715896,1e-08,131.21,131.2,19.73625774]
[1765731716226,0.71000001,131.21,131.2,8.34]
[1765731716430,0.71000001,131.21,131.2,15.96195121]
[1765731716595,1e-08,131.21,131.2,19.73625774]
[1765731719102,0.71000001,131.21,131.2,19.73625774]
[1765731719705,1e-08,131.21,131.2,19.73625774]
[1765731720523,0.71000001,131.21,131.2,15.96195121]
[1765731721214,0.71000001,131.21,131.2,8.34]
[1765731723623,0.71000001,131.21,131.17,7.62334023]
[1765731723820,0.71000001,131.21,131.17,15.96334023]
[1765731724026,0.71000001,131.21,131.17,8.34]
[1765731724027,8.33157037,131.21,131.17,8.34]
[1765731724531,0.71,131.2,131.17,8.34]
[1765731725039,8.33203503,131.2,131.17,8.34]
[1765731725220,0.71,131.2,131.17,8.34]
[1765731725411,0.71,131.19,131.17,8.34]
[1765731734053,0.71,131.19,131.15,3.17296899]
[1765731734354,7.62412038,131.17,131.12,8.34]
[1765731734653,0.71,131.19,131.14,3.17296899]
[1765731734826,0.71,131.18,131.14,3.17296899]
[1765731735836,0.71,131.18,131.14,10.79823622]
[1765731736018,0.71,131.18,131.14,8.32526723]
[1765731736341,0.71,131.18,131.14,7.62526723]
[1765731736834,11.5061944,131.18,131.13,7.62585616]
[1765731737022,3.17296899,131.17,131.12,15.96625228]
[1765731737218,3.88296899,131.17,131.12,15.96625228]
[1765731737529,3.88296899,131.16,131.12,8.34]
[1765731737941,0.71,131.15,131.11,7.62696817]
[1765731738642,3.88296899,131.15,131.1,15.9675496]
[1765731738827,3.88296899,131.15,131.1,8.34]
[1765731739134,0.71,131.14,131.1,16.66772181]
[1765731740328,0.71,131.14,131.1,15.96772181]
[1765731740519,0.71,131.15,131.11,3.87296899]
[1765731740727,0.71,131.16,131.12,3.17296899]
[1765731740930,0.71,131.16,131.12,3.87296899]
[1765731741333,0.71,131.16,131.12,0.7]
[1765731741716,0.71,131.16,131.12,8.32642128]
[1765731741915,8.33433726,131.16,131.12,8.32642128]
[1765731742557,0.71,131.15,131.11,7.62696383]
[1765731742913,3.88296899,131.15,131.1,8.34]
[1765731743420,0.71,131.14,131.1,16.66740943]
[1765731744233,0.71,131.14,131.1,15.96740943]
[1765731744434,0.71,131.14,131.1,16.66740943]
[1765731744819,11.50849231,131.14,131.1,8.34]
[1765731745134,8.33552332,131.14,131.1,8.34]
[1765731745335,0.71,131.13,131.1,8.34]
[1765731745856,3.17296899,131.12,131.06,3.37296899]
[1765731746014,0.71,131.13,131.06,7.82973734]
[1765731746015,11.51035704,131.11,131.06,7.82973734]
[1765731746222,11.51035704,131.11,131.06,0.2]
[1765731746531,3.17296899,131.09,131.06,0.2]
[1765731746951,0.68,131.08,131.06,0.2]
[1765731748251,8.30901081,131.08,131.06,0.2]
[1765731748431,8.30901081,131.08,131.02,8.34]
[1765731748630,3.17296899,131.06,131.02,8.34]
[1765731748947,3.17296899,131.07,131.02,16.64218233]
[1765731749154,0.68,131.07,131.03,3.84296899]
[1765731749358,0.68,131.07,131.03,0.67]
[1765731749855,3.85296899,131.07,131.02,15.97218233]
[1765731750055,3.85296899,131.07,131.02,8.34]
[1765731750056,10.8031662,131.06,131.02,8.34]
[1765731750358,0.68,131.07,131.03,0.67]
[1765731750538,0.68,131.06,131.03,0.67]
[1765731751753,10.80204738,131.08,131.03,8.30182239]
[1765731751962,0.68,131.07,131.03,8.30182239]
[1765731752340,3.85296899,131.07,131.02,16.64222083]
[1765731752639,0.68,131.07,131.03,0.67]
[1765731752844,0.68,131.07,131.03,8.30182229]
[1765731754261,11.48285374,131.07,131.02,8.34]
[1765731754642,3.85296899,131.06,131.02,9.01]
[1765731754841,0.68,131.06,131.03,0.67]
[1765731755935,8.30988475,131.07,131.03,0.67]
[1765731756641,0.68,131.07,131.03,8.30183315]
[1765731756861,0.68,131.07,131.03,0.67]
[1765731757233,3.85296899,131.07,131.02,9.01]
[1765731757430,0.68,131.07,131.03,0.67]
[1765731757736,8.3090728,131.08,131.03,3.84994475]
[1765731757935,8.36,131.09,131.04,3.17994475]
[1765731758158,0.68,131.09,131.04,3.84994475]
[1765731758458,0.68,131.08,131.05,0.67]
[1765731759443,0.68,131.08,131.04,7.63112248]
[1765731759765,8.3090426,131.08,131.04,0.67]
[1765731759947,11.48898735,131.08,131.02,19.82217389]
[1765731760264,0.68,131.07,131.02,19.82217389]
[1765731760562,0.68,131.07,131.03,8.30170788]
[1765731761037,8.3090426,131.08,131.04,0.67]
[1765731761538,8.3090426,131.08,131.04,8.30120123]
[1765731762046,8.3090426,131.08,131.05,0.67]
[1765731763035,0.68,131.08,131.05,0.67]
[1765731764066,8.30799734,131.1,131.05,8.30045246]
[1765731764243,8.30799734,131.1,131.05,19.84039721]
[1765731764448,8.30799734,131.1,131.06,0.67]
[1765731765674,7.62734102,131.11,131.06,11.47997536]
[1765731765860,8.30734102,131.11,131.06,11.47997536]
[1765731766176,8.30734102,131.11,131.07,0.67]
[1765731773685,7.62734102,131.11,131.07,0.67]
[1765731773901,0.68,131.1,131.07,0.67]
[1765731774594,8.30734102,131.11,131.07,8.2995105]
[1765731774973,0.68,131.1,131.07,0.67]
[1765731775563,7.62734102,131.11,131.07,0.67]
[1765731775899,8.30734102,131.11,131.07,0.67]
[1765731776100,8.30734102,131.11,131.07,8.29943984]
[1765731776389,8.30734102,131.11,131.08,0.7]
[1765731777995,0.66,131.1,131.07,0.7]
[1765731778170,8.28790743,131.1,131.07,0.7]
[1765731778992,7.6273181,131.11,131.07,0.7]
[1765731779295,8.2873181,131.11,131.07,2.73348768]
[1765731779689,8.2873181,131.11,131.08,0.7]
[1765731780191,15.98673217,131.12,131.08,8.32884571]
[1765731780397,16.64673217,131.12,131.09,0.7]
[1765731780897,0.66,131.11,131.08,0.7]
[1765731782799,8.287197,131.11,131.07,7.62925213]
[1765731783091,8.287197,131.11,131.07,0.7]
[1765731783270,0.66,131.1,131.07,0.7]
[1765731784216,8.287197,131.11,131.07,8.32948817]
[1765731784568,8.287197,131.11,131.08,0.7]
[1765731785315,8.287197,131.11,131.06,7.62992268]
[1765731785316,0.66,131.1,131.06,7.62992268]
[1765731785605,0.66,131.1,131.07,0.7]
[1765731786401,8.287197,131.11,131.07,8.32941718]
[1765731786619,0.66,131.1,131.07,8.32941718]
[1765731789207,0.66,131.11,131.08,0.7]
[1765731789507,2.69348768,131.1,131.05,8.36]
[1765731789705,2.69348768,131.1,131.03,19.07872529]
[1765731789706,9.66183461,131.09,131.03,0.7]
[1765731789910,0.66,131.1,131.05,9.66411591]
[1765731790105,0.66,131.1,131.06,2.73348768]
[1765731790285,0.66,131.1,131.07,0.7]
[1765731793910,8.28543846,131.14,131.09,2.03366355]
[1765731794083,0.66,131.13,131.09,2.03366355]
[1765731794288,2.69366355,131.13,131.07,30.02091061]
[1765731794490,2.69366355,131.13,131.08,0.7]
[1765731794684,0.66,131.12,131.08,0.7]
[1765731795303,10.32046406,131.12,131.07,21.4070912]
[1765731795686,0.66,131.11,131.07,16.68936394]
[1765731795886,0.66,131.11,131.07,9.06]
[1765731797400,8.28774083,131.11,131.07,9.06]
[1765731797911,0.66,131.1,131.07,9.06]
[1765731799313,8.28774083,131.11,131.08,0.7]
[1765731799492,0.66,131.1,131.07,16.6895035]
[1765731800016,0.66,131.14,131.09,2.03366355]
[1765731800319,0.66,131.14,131.11,2.03366355]
[1765731800492,0.66,131.14,131.1,2.03366355]
[1765731800912,0.66,131.14,131.11,2.73366355]
[1765731801119,8.28542631,131.15,131.11,10.3606421]
[1765731801414,7.62542631,131.15,131.12,0.7]
[1765731801623,8.28542631,131.15,131.12,0.7]
[1765731803305,8.28542631,131.15,131.11,9.6606421]
[1765731803506,8.28542631,131.15,131.11,10.3606421]
[1765731803713,8.28449115,131.16,131.12,0.7]
[1765731803913,0.66,131.15,131.12,0.7]
[1765731807024,0.66,131.15,131.12,8.32639971]
[1765731808428,7.62449115,131.16,131.13,0.66]
[1765731808800,8.33449115,131.16,131.13,0.66]
[1765731809231,0.71,131.15,131.12,0.66]
[1765731811110,8.33533463,131.15,131.12,0.66]
[1765731812031,7.62533463,131.15,131.1,8.36]
[1765731812329,0.71,131.14,131.1,8.36]
[1765731812502,13.0470912,131.18,131.13,2.03366355]
[1765731812703,8.33390775,131.17,131.13,2.73366355]
[1765731812904,29.4268074,131.17,131.1,15.98754829]
[1765731813135,7.62485703,131.15,131.11,2.73366355]
[1765731813303,7.62485703,131.15,131.11,0.7]
[1765731813503,8.33485703,131.15,131.12,0.7]
[1765731814518,8.33485703,131.15,131.11,0.7]
[1765731815033,7.62450831,131.16,131.11,10.36062845]
[1765731815212,8.33450831,131.16,131.12,2.03366355]
[1765731815533,8.33450831,131.16,131.12,2.73366355]
[1765731815906,8.33450831,131.16,131.12,0.7]
[1765731816530,8.33450831,131.16,131.12,10.36022385]
[1765731816739,104.7,131.19,131.15,2.03366355]
[1765731816935,104.7,131.19,131.17,2.03366355]
[1765731817113,7.62246054,131.2,131.18,0.7]
[1765731817432,7.62246054,131.2,131.17,2.73366355]
[1765731817611,0.71000001,131.21,131.18,0.7]
[1765731818413,8.33142549,131.21,131.18,0.7]
[1765731818804,0.71000001,131.21,131.18,0.7]
[1765731819002,8.33140758,131.21,131.18,0.7]
[1765731819407,8.33140758,131.21,131.17,10.35735429]
[1765731819707,8.33140758,131.21,131.18,0.7]
[1765731819907,8.33140758,131.21,131.17,10.35735429]
[1765731820311,7.62140758,131.21,131.18,0.7]
[1765731820916,8.33140758,131.21,131.18,0.7]
[1765731822343,0.71,131.2,131.16,10.35781013]
[1765731823015,0.71,131.2,131.17,0.7]
[1765731823444,0.71,131.2,131.14,8.34]
[1765731823445,0.71,131.2,131.14,9.04]
[1765731823612,2.74366355,131.2,131.15,0.7]
[1765731823809,2.74366355,131.2,131.15,8.32478536]
[1765731824031,0.71,131.19,131.15,0.7]
[1765731824245,8.33296999,131.19,131.16,0.7]
[1765731824412,8.33296999,131.19,131.15,0.7]
[1765731825539,0.71,131.18,131.15,0.7]
[1765731825840,0.71,131.18,131.13,8.32587545]
[1765731826042,2.74366355,131.18,131.13,8.32587545]
[1765731826420,0.71,131.17,131.13,8.32587545]
[1765731826744,0.71,131.17,131.13,0.7]
[1765731826921,2.03366355,131.15,131.1,0.7]
[1765731827110,7.62543846,131.14,131.11,0.7]
[1765731827533,8.33543846,131.14,131.11,0.7]
[1765731828050,10.36910201,131.14,131.11,0.7]
[1765731828835,7.62543846,131.14,131.11,0.7]
[1765731829026,9.65875076,131.15,131.11,0.7]
[1765731829230,10.36875076,131.15,131.11,0.7]
[1765731830545,10.36765122,131.15,131.11,0.7]
[1765731831144,8.33508721,131.15,131.11,0.7]
[1765731831524,10.36765122,131.15,131.11,0.7]
[1765731832424,9.65765122,131.15,131.11,0.7]
[1765731832655,0.71,131.14,131.11,0.7]
[1765731832818,10.36765122,131.15,131.11,0.7]
[1765731835024,0.71,131.14,131.11,0.7]
[1765731835640,2.03256401,131.13,131.09,8.34]
[1765731835954,2.03256401,131.12,131.09,8.34]
[1765731836251,2.72256401,131.12,131.09,8.34]
[1765731836426,2.72256401,131.12,131.09,9.01]
[1765731837648,10.34974429,131.12,131.09,9.01]
[1765731838352,9.65974429,131.12,131.09,8.34]
[1765731838524,8.31742107,131.11,131.09,8.34]
[1765731838726,7.62742107,131.11,131.09,9.01]
[1765731839740,7.62742107,131.11,131.06,7.63009308]
[1765731839955,0.69,131.1,131.07,0.67]
[1765731840136,8.31742107,131.11,131.07,0.67]
[1765731840746,7.62742107,131.11,131.07,8.29947824]
[1765731840938,7.62742107,131.11,131.08,0.67]
[1765731841935,7.62684331,131.12,131.08,3.84743402]
[1765731842242,7.62684331,131.12,131.08,0.67]
[1765731843360,0.69,131.11,131.06,27.4145806]
[1765731843561,3.86743402,131.12,131.08,0.67]
[1765731844049,0.69,131.12,131.08,0.67]
[1765731844973,0.69,131.12,131.07,7.62919472]
[1765731844974,3.17743402,131.11,131.06,15.96989575]
[1765731845125,3.17743402,131.11,131.08,0.67]
[1765731845472,7.62776506,131.1,131.08,0.67]
[1765731846556,7.62776506,131.1,131.06,15.96989575]
[1765731846763,0.69,131.09,131.06,9.01]
[1765731846927,0.69,131.09,131.06,8.34]
[1765731847261,3.17743402,131.07,131.04,0.67]
[1765731847429,7.63009308,131.06,131.02,9.01]
[1765731847852,7.63009308,131.06,131.03,0.67]
[1765731849340,3.17743402,131.04,131.0,13.0470912]
[1765731849663,3.17743402,131.04,130.99,0.67]
[1765731849959,3.17743402,131.04,131.0,0.67]
[1765731849960,3.17743402,131.03,131.0,0.67]
[1765731850329,3.86743402,131.04,131.0,0.67]
[1765731850529,3.17743402,131.03,131.0,0.67]
[1765731850778,0.69,131.03,130.98,16.64437531]
[1765731850934,0.69,131.03,130.99,0.67]
[1765731851254,7.63242253,131.02,130.99,0.67]
[1765731851558,12.22743402,131.06,130.99,11.48116186]
[1765731851864,0.69,131.05,130.99,11.48116186]
[1765731852044,0.69,131.05,131.0,0.67]
[1765731852240,8.32067531,131.05,131.0,0.67]
[1765731852830,8.32067531,131.05,131.0,8.30339222]
[1765731853064,8.32067531,131.05,131.01,0.67]
[1765731853245,7.63067531,131.05,131.01,0.67]
[1765731853444,8.32067531,131.05,131.01,0.67]
[1765731853957,8.32067531,131.05,131.01,8.30294474]
[1765731854167,7.63067531,131.05,131.02,0.67]
[1765731855959,3.86743402,131.04,130.99,0.67]
[1765731856332,0.69,131.03,130.99,0.67]
[1765731858351,8.32207076,131.03,130.99,0.67]
[1765731858563,8.32207076,131.03,130.99,3.84743402]
[1765731858934,8.32207076,131.03,131.0,0.67]
[1765731859869,8.36,131.06,131.01,3.17743402]
[1765731860039,9.05,131.06,131.01,3.17743402]
[1765731860242,9.05,131.06,131.02,0.67]
[1765731860439,7.63080736,131.05,131.02,0.67]
[1765731862067,0.69,131.04,131.0,0.67]
[1765731862846,3.86743402,131.04,131.0,0.67]
[1765731863056,3.86743402,131.04,130.98,12.20743402]
[1765731863377,3.86743402,131.04,130.99,0.67]
[1765731863378,0.69,131.03,130.99,0.67]
[1765731864277,7.63242253,131.02,130.99,0.67]
[1765731864468,0.69,131.03,130.99,3.84743402]
[1765731864469,7.63186289,131.03,130.99,3.84743402]
[1765731864664,8.32186289,131.03,130.99,0.67]
[1765731865271,0.69,131.02,130.98,8.36]
[1765731865476,0.69,131.02,130.99,0.67]
[1765731866379,7.63300511,131.01,130.99,0.67]
[1765731867352,7.63255857,131.02,130.99,0.67]
[1765731867554,7.63197655,131.03,130.99,11.48601691]
[1765731868048,7.63150574,131.04,131.0,3.8519438]
[1765731868570,7.63150574,131.04,131.01,0.67]
[1765731870354,7.63084075,131.05,131.01,11.48467628]
[1765731870852,7.63084075,131.05,131.02,0.65]
[1765731871961,8.33084075,131.05,131.02,0.65]
[1765731872576,7.63084075,131.05,131.02,0.65]
[1765731874385,7.63005976,131.07,131.03,3.1819438]
[1765731874883,7.63005976,131.07,131.04,0.65]
[1765731877893,7.63005976,131.07,131.03,0.65]
[1765731878190,8.33005976,131.07,131.04,0.65]
[1765731878691,0.7,131.06,131.02,0.65]
[1765731879489,3.8819438,131.06,131.02,0.65]
[1765731879690,3.8819438,131.05,131.01,9.01]
[1765731879878,7.63125763,131.04,131.01,9.01]
[1765731880075,7.63125763,131.04,131.02,0.65]
[1765731880871,7.63092789,131.05,131.02,0.65]
[1765731881266,7.63092789,131.05,131.02,3.8319438]
[1765731881476,7.63092789,131.05,131.02,0.65]
[1765731881672,7.63092789,131.05,131.03,0.65]
[1765731881979,7.63009308,131.06,131.03,0.65]
[1765731882366,8.33009308,131.06,131.03,0.65]
[1765731882988,19.07377737,131.07,131.01,19.17486331]
[1765731882989,26.70328831,131.07,131.01,19.17486331]
[1765731883169,0.7,131.05,131.02,0.65]
[1765731883373,27.40328831,131.07,131.02,0.65]
[1765731883589,0.7,131.06,131.02,0.65]
[1765731884089,26.70328831,131.07,131.02,3.8319438]
[1765731884293,27.40328831,131.07,131.02,3.8319438]
[1765731884481,27.40328831,131.07,131.03,0.65]
[1765731886096,7.63067531,131.05,131.03,0.65]
[1765731887095,7.63031047,131.06,131.03,3.8319438]
[1765731887413,7.63031047,131.06,131.04,0.65]
[1765731888893,0.7,131.06,131.03,0.65]
[1765731889067,0.7,131.05,131.02,0.65]
[1765731890828,0.7,131.05,131.01,8.36]
[1765731891000,7.63125763,131.04,131.01,8.36]
[1765731891190,8.33125763,131.04,131.01,8.36]
[1765731891501,0.7,131.03,130.99,0.65]
[1765731892907,7.63242253,131.02,130.98,9.01]
[1765731893112,7.63242253,131.02,130.99,0.65]
[1765731893412,8.33242253,131.02,130.99,0.65]
[1765731893910,7.63242253,131.02,130.99,0.65]
[1765731895506,8.33242253,131.02,130.99,0.65]
[1765731895696,0.7,131.01,130.98,8.36]
[1765731895898,27.41347885,131.02,130.98,9.01]
[1765731896089,27.40347885,131.02,130.98,9.01]
[1765731896591,8.32242253,131.02,130.99,0.69]
[1765731896913,7.63242253,131.02,130.99,0.69]
[1765731898413,7.63242253,131.02,130.98,9.05]
[1765731898603,0.69,131.01,130.98,9.05]
[1765731899408,19.08042506,131.03,130.99,3.8719438]
[1765731899716,19.77042506,131.03,130.99,0.69]
[1765731899898,19.77042506,131.03,130.99,3.8719438]
[1765731900296,0.69,131.02,130.99,3.8719438]
[1765731900497,8.32256117,131.02,130.99,3.8719438]
[1765731901017,7.63198583,131.03,131.0,3.87086842]
[1765731901339,7.63150662,131.04,131.01,3.18086842]
[1765731901499,7.63150662,131.04,131.01,2.72521682]
[1765731902191,26.70965069,131.04,131.01,2.72521682]
[1765731903533,27.39965069,131.04,131.01,2.72521682]
[1765731903691,27.39965069,131.04,131.0,2.03521682]
[1765731903889,8.32230178,131.03,131.0,2.72521682]
[1765731904315,7.63230178,131.03,131.0,2.72521682]
[1765731904514,8.32230178,131.03,131.0,2.72521682]
[1765731905430,0.69,131.02,130.99,0.69]
[1765731905634,0.69,131.02,130.98,9.05]
[1765731906129,7.63300511,131.01,130.99,0.69]
[1765731906532,7.63255965,131.02,130.99,2.72521682]
[1765731908114,19.07960009,131.03,130.99,2.72521682]
[1765731908308,0.69,131.02,130.99,0.69]
[1765731908521,19.76960009,131.03,131.0,0.69]
[1765731909034,19.07960009,131.03,130.99,2.03521682]
[1765731909238,19.76960009,131.03,130.99,2.72521682]
[1765731910438,27.40144012,131.03,130.99,2.72521682]
[1765731911923,27.40144012,131.03,130.99,2.03521682]
[1765731912137,7.63184003,131.03,131.0,2.72521682]
[1765731912309,7.63184003,131.03,131.01,2.03521682]
[1765731912499,7.63184003,131.03,131.01,2.72521682]
[1765731913194,7.63184003,131.03,131.01,0.69]
[1765731913399,0.69,131.02,130.98,15.9946338]
[1765731913739,0.69,131.02,130.99,2.72521682]
[1765731914206,8.32264258,131.02,130.99,2.72521682]
[1765731915169,7.63264258,131.02,131.0,0.69]
[1765731917159,19.07960009,131.03,131.0,0.69]
[1765731917355,19.76960009,131.03,131.0,0.69]
[1765731921361,27.40144012,131.03,131.0,0.69]
[1765731924661,7.63184003,131.03,131.0,10.35867511]
[1765731924849,145.18384329,131.05,131.0,10.35867511]
[1765731924850,7.63142942,131.04,131.01,2.03521682]
[1765731925045,7.63142942,131.04,131.01,2.72521682]
[1765731925363,8.32142942,131.04,131.01,2.72521682]
[1765731925561,8.32142942,131.04,131.01,0.69]
[1765731925756,8.32142942,131.04,131.02,0.69]
[1765731925960,27.3974274,131.05,131.02,0.69]
[1765731926361,0.68,131.04,131.01,0.66]
[1765731926862,8.31144342,131.04,131.01,0.66]
[1765731931173,0.68,131.03,131.0,2.69521682]
[1765731931479,0.68,131.03,131.01,0.66]
[1765731931643,8.31144342,131.04,131.01,0.66]
[1765731932044,0.68,131.03,131.01,0.66]
[1765731932645,7.63144342,131.04,131.01,0.66]
[1765731932838,8.31144342,131.04,131.01,0.66]
[1765731940272,0.68,131.03,130.99,10.32944811]
[1765731940670,0.68,131.03,131.0,0.66]
[1765731941170,0.68,131.03,130.99,2.6955365]
[1765731941350,0.68,131.03,130.99,0.66]
[1765731941546,0.68,131.03,130.98,8.36]
[1765731941547,2.7155365,131.03,130.98,8.36]
[1765731941865,2.7155365,131.03,130.99,8.29405335]
[1765731941866,0.68,131.03,130.99,8.29405335]
[1765731942070,8.31229952,131.03,130.99,8.29405335]
[1765731942269,8.31229952,131.03,131.0,0.66]
[1765731942473,7.63229952,131.03,131.0,0.66]
[1765731942650,0.68,131.02,131.0,0.66]
[1765731944477,8.31229952,131.03,131.0,0.66]
[1765731945993,7.63229952,131.03,131.0,0.66]
[1765731946176,21.4070912,131.04,131.0,10.32907902]
[1765731946177,16.67145378,131.04,131.0,10.32907902]
[1765731946590,16.67145378,131.04,131.01,0.66]
[1765731946880,0.68,131.03,131.0,7.63354252]
[1765731947080,0.68,131.03,131.01,0.66]
[1765731947274,15.99145378,131.04,131.01,0.66]
[1765731947466,0.68,131.03,131.01,0.66]
[1765731947864,0.68,131.03,130.99,9.66944784]
[1765731948069,0.68,131.03,131.0,0.66]
[1765731948797,8.31217256,131.03,131.0,0.66]
[1765731949290,0.68,131.02,130.98,10.33002896]
[1765731949482,0.68,131.02,130.98,0.66]
[1765731950075,26.71177265,131.03,130.98,8.29470618]
[1765731950289,8.31217256,131.03,130.99,2.0355365]
[1765731950469,8.31217256,131.03,130.99,2.6955365]
[1765731950666,8.31217256,131.03,131.0,0.66]
[1765731951581,7.63217256,131.03,131.0,0.66]
[1765731952386,8.31217256,131.03,131.0,0.66]
[1765731960302,0.71,131.02,130.98,2.7155365]
[1765731960472,0.71,131.02,130.99,0.68]
[1765731960797,0.71,131.02,130.98,0.68]
[1765731961098,0.71,131.02,130.99,0.68]
[1765731961300,7.63300511,131.01,130.99,0.68]
[1765731961700,8.34300511,131.01,130.99,0.68]
[1765731962501,7.63300511,131.01,130.99,0.68]
[1765731962688,8.34242253,131.02,130.99,0.68]
[1765731967192,7.63242253,131.02,130.99,11.4959014]
[1765731967506,7.63242253,131.02,131.0,3.18189664]
[1765731967703,7.63184003,131.03,131.0,3.86189664]
[1765731967887,8.34184003,131.03,131.0,3.86189664]
[1765731968090,8.34184003,131.03,131.0,0.68]
[1765731969009,26.71144012,131.03,130.97,16.19510944]
[1765731969182,0.71,131.02,130.98,0.68]
[1765731969905,8.34293062,131.02,130.98,11.4966363]
[1765731970389,8.34293062,131.02,130.99,0.68]
[1765731975516,7.63293062,131.02,130.99,0.68]
[1765731976116,7.63293062,131.02,130.99,8.31416739]
[1765731976612,8.34293062,131.02,130.98,10.81570537]